bitfinex/quotes_SOLUSD_20250422
["timestamp","ask_amount","ask_price","bid_price","bid_amount"]
[1745354425320,19.90345601,143.92,143.89,82.0]
[1745354425504,6.94835058,143.92,143.89,82.0]
[1745354427504,19.90345601,143.92,143.89,82.0]
[1745354429419,17.36834792,143.94,143.89,82.0]
[1745354429734,0.03,143.95,143.93,12.95510543]
[1745354430033,0.03,143.95,143.92,54.62510543]
[1745354433511,0.03,143.95,143.93,12.95510543]
[1745354436826,0.03,143.95,143.92,12.95510543]
[1745354437207,0.03,143.95,143.93,12.95510543]
[1745354438416,0.03,143.95,143.94,12.95510543]
[1745354444023,0.03,143.95,143.92,41.67]
[1745354444222,0.03,143.95,143.93,12.95510543]
[1745354445721,0.03,143.95,143.94,12.95510543]
[1745354446122,0.03,143.95,143.94,94.95510543]
[1745354451055,0.03,143.95,143.94,136.62510543]
[1745354452135,0.03,143.95,143.94,138.21690543]
[1745354455860,0.03,143.98,143.97,26.0]
[1745354456163,0.03,143.98,143.97,38.95510543]
[1745354456548,0.03,143.98,143.97,80.62510543]
[1745354457159,0.03,143.98,143.97,84.0100916]
[1745354457360,0.03,143.98,143.97,166.0100916]
[1745354463870,0.07,144.0,143.99,18.64964886]
[1745354464076,0.03,144.08,144.06,86.31964886]
[1745354464272,6.93577301,144.19,144.14,12.95510543]
[1745354464457,12.95510543,144.18,144.14,12.95510543]
[1745354464762,12.95510543,144.18,144.13,12.95510543]
[1745354465170,12.95510543,144.17,144.13,12.95510543]
[1745354465474,12.95510543,144.17,144.12,12.95510543]
[1745354465780,12.95510543,144.16,144.12,12.95510543]
[1745354466142,12.95510543,144.16,144.11,12.95510543]
[1745354467669,12.95510543,144.13,144.07,41.67]
[1745354467876,12.95510543,144.12,144.08,26.0]
[1745354468081,12.95510543,144.11,144.05,41.67]
[1745354468381,12.95510543,144.1,144.06,12.95510543]
[1745354468563,12.95510543,144.09,144.05,54.62510543]
[1745354468764,12.95510543,144.09,144.05,41.67]
[1745354468963,12.95510543,144.08,144.04,12.95510543]
[1745354469480,12.95510543,144.08,144.03,26.0]
[1745354469671,19.89575643,144.08,144.03,38.95510543]
[1745354469877,19.89575643,144.08,144.03,12.95510543]
[1745354470584,12.95510543,144.07,144.02,149.64]
[1745354470887,6.940651,144.08,143.99,133.79042172]
[1745354470888,12.95510543,144.06,143.99,133.79042172]
[1745354471082,12.95510543,144.06,144.02,12.95510543]
[1745354472460,19.89685385,144.06,144.02,12.95510543]
[1745354476885,19.89685385,144.06,144.01,12.95510543]
[1745354478091,12.95510543,144.05,144.01,12.95510543]
[1745354478893,6.94251596,144.04,144.01,12.95510543]
[1745354480792,19.89762139,144.04,144.0,12.95510543]
[1745354481087,6.94251596,144.04,144.0,12.95510543]
[1745354481294,6.94251596,144.04,144.01,12.95510543]
[1745354483681,6.94251596,144.04,144.0,12.95510543]
[1745354484086,6.94251596,144.04,144.0,94.92510543]
[1745354485674,12.95510543,144.04,144.0,94.92510543]
[1745354486496,12.95510543,144.04,144.0,81.97]
[1745354486789,6.94299798,144.03,144.0,81.97]
[1745354490798,19.89810341,144.03,144.0,81.97]
[1745354491178,6.94273652,144.04,144.01,12.95510543]
[1745354492605,19.89784195,144.04,144.0,94.92510543]
[1745354493895,6.94273652,144.04,144.01,12.95510543]
[1745354495797,6.94203401,144.05,144.01,12.95510543]
[1745354496194,6.94203401,144.05,144.0,94.92510543]
[1745354496590,19.89713944,144.05,144.0,94.92510543]
[1745354498096,6.94203401,144.05,144.01,12.95510543]
[1745354499206,19.89713944,144.05,144.0,94.92510543]
[1745354503213,19.89713944,144.05,144.0,81.97]
[1745354503391,19.89713944,144.05,144.0,94.92510543]
[1745354505010,24.29550882,144.06,144.0,94.92510543]
[1745354505193,12.95510543,144.05,144.0,81.97]
[1745354505396,12.95510543,144.05,144.0,94.92510543]
[1745354507116,6.94251596,144.04,144.0,94.92510543]
[1745354508510,24.29550882,144.06,144.01,12.95510543]
[1745354508708,37.25061425,144.06,144.01,12.95510543]
[1745354510816,37.25061425,144.06,144.0,81.97]
[1745354511011,12.95510543,144.05,144.0,94.92510543]
[1745354512508,19.89749875,144.05,144.0,94.92510543]
[1745354513015,19.89749875,144.05,144.01,12.95510543]
[1745354514814,6.94155213,144.06,144.01,12.95510543]
[1745354514996,19.89665756,144.06,144.01,12.95510543]
[1745354518018,19.89665756,144.06,144.0,94.92510543]
[1745354519429,12.95510543,144.05,144.0,81.97]
[1745354519796,12.95510543,144.05,144.0,94.92510543]
[1745354520528,6.94251596,144.04,144.0,94.92510543]
[1745354521531,6.94251596,144.04,144.0,81.97]
[1745354521725,6.94251596,144.04,144.0,94.92510543]
[1745354522836,19.89762139,144.04,144.0,81.97]
[1745354523944,19.89732461,144.05,144.0,94.92510543]
[1745354524606,19.89732461,144.05,144.0,81.97]
[1745354524807,19.89732461,144.05,144.0,94.92510543]
[1745354528123,6.94221918,144.05,144.0,94.92510543]
[1745354528325,20.5891,144.13,144.05,26.0]
[1745354528538,20.5891,144.13,144.08,12.95510543]
[1745354528539,6.93866222,144.12,144.08,12.95510543]
[1745354529437,19.89376765,144.12,144.08,12.95510543]
[1745354529811,12.95510543,144.11,144.07,12.95510543]
[1745354530007,6.93866222,144.12,144.09,12.95510543]
[1745354530212,6.93866222,144.12,144.05,107.97]
[1745354530213,6.93836031,144.13,144.1,12.95510543]
[1745354531343,19.89346574,144.13,144.09,12.95510543]
[1745354531516,12.95510543,144.12,144.08,12.95510543]
[1745354533614,19.89393444,144.12,144.08,12.95510543]
[1745354533814,19.89393444,144.12,144.08,94.92510543]
[1745354534037,6.93882901,144.12,144.08,81.97]
[1745354534221,6.93882901,144.12,144.08,94.92510543]
[1745354535043,19.89343764,144.13,144.08,94.92510543]
[1745354535229,19.89343764,144.13,144.09,12.95510543]
[1745354535536,0.03,144.14,144.11,12.95510543]
[1745354535745,0.03,144.14,144.12,12.95510543]
[1745354536222,0.03,144.14,144.13,12.95510543]
[1745354537843,0.03,144.14,144.12,94.92510543]
[1745354539442,0.03,144.14,144.13,12.95510543]
[1745354540034,0.03,144.14,144.13,207.06517601]
[1745354540235,0.03,144.24,144.2,26.0]
[1745354540542,0.03,144.24,144.22,54.62510543]
[1745354540729,26.33672092,144.3,144.25,12.95510543]
[1745354540939,12.95510543,144.26,144.2,107.97]
[1745354541130,12.95510543,144.23,144.2,26.0]
[1745354543143,12.95510543,144.21,144.18,81.97]
[1745354543520,12.95510543,144.22,144.18,94.92510543]
[1745354543948,12.95510543,144.21,144.18,81.97]
[1745354544454,19.88973182,144.21,144.18,81.97]
[1745354544957,12.95510543,144.24,144.2,12.95510543]
[1745354545235,12.95510543,144.25,144.2,12.95510543]
[1745354546429,19.8876289,144.25,144.2,12.95510543]
[1745354546740,12.95510543,144.26,144.22,12.95510543]
[1745354547049,12.95510543,144.26,144.21,120.92510543]
[1745354547635,12.95510543,144.26,144.22,12.95510543]
[1745354547828,12.95510543,144.27,144.22,12.95510543]
[1745354548143,12.95510543,144.26,144.21,120.92510543]
[1745354548345,19.88709938,144.26,144.21,120.92510543]
[1745354549849,12.95510543,144.27,144.22,12.95510543]
[1745354550039,38.53572185,144.28,144.23,12.95510543]
[1745354550251,19.88607299,144.28,144.24,12.95510543]
[1745354551140,6.93096756,144.28,144.24,12.95510543]
[1745354551850,19.88575512,144.29,144.24,12.95510543]
[1745354552029,19.88575512,144.29,144.22,12.95510543]
[1745354552030,12.95510543,144.27,144.22,12.95510543]
[1745354552432,12.95510543,144.26,144.22,12.95510543]
[1745354553037,12.95510543,144.25,144.21,107.97]
[1745354553939,19.88776015,144.25,144.21,120.92510543]
[1745354554234,6.93265472,144.25,144.21,120.92510543]
[1745354555664,12.95510543,144.25,144.21,94.92510543]
[1745354556773,19.88771426,144.25,144.21,94.92510543]
[1745354557361,19.88771426,144.25,144.21,12.95510543]
[1745354557867,19.88723183,144.26,144.21,12.95510543]
[1745354558663,12.95510543,144.25,144.21,12.95510543]
[1745354559865,19.88760558,144.25,144.21,12.95510543]
[1745354560369,19.88721854,144.26,144.21,12.95510543]
[1745354561159,6.93211311,144.26,144.22,12.95510543]
[1745354561379,6.93159016,144.27,144.23,12.95510543]
[1745354562170,0.042345,144.3,144.26,26.0]
[1745354562469,0.042345,144.3,144.29,38.95510543]
[1745354562769,0.03,144.34,144.32,12.95510543]
[1745354563065,0.03,144.34,144.31,12.95510543]
[1745354563839,0.03,144.34,144.3,14.60560543]
[1745354564062,0.03,144.34,144.3,1.6505]
[1745354564244,12.98510543,144.34,144.29,80.62510543]
[1745354565440,19.9132329,144.34,144.29,80.62510543]
[1745354567959,31.60475429,144.33,144.27,83.6205]
[1745354568151,6.95812747,144.34,144.28,12.95510543]
[1745354568340,19.9132329,144.34,144.29,12.95510543]
[1745354568756,0.03,144.34,144.31,12.95510543]
[1745354569559,0.03,144.34,144.3,26.0]
[1745354569745,0.03,144.34,144.33,12.95510543]
[1745354570863,0.03,144.34,144.32,12.95510543]
[1745354571361,0.03,144.34,144.33,20.1361189]
[1745354576059,0.03,144.34,144.32,20.1361189]
[1745354576260,0.03,144.34,144.33,26.0]
[1745354578271,20.1661189,144.34,144.3,107.97]
[1745354578465,20.1661189,144.34,144.3,128.1061189]
[1745354578466,0.03,144.34,144.3,128.1061189]
[1745354578673,0.03,144.34,144.31,20.1361189]
[1745354579283,20.1361189,144.36,144.31,20.1361189]
[1745354580365,6.92760651,144.35,144.31,20.1361189]
[1745354581548,20.1361189,144.34,144.28,123.64]
[1745354581749,20.1361189,144.34,144.29,20.1361189]
[1745354581974,20.1361189,144.33,144.28,102.1061189]
[1745354582151,6.92904656,144.32,144.28,102.1061189]
[1745354582469,27.06516546,144.32,144.27,20.1361189]
[1745354583674,27.06516546,144.32,144.26,149.64]
[1745354583852,27.06516546,144.32,144.27,20.1361189]
[1745354584052,20.1361189,144.28,144.23,0.063]
[1745354584247,20.1361189,144.26,144.23,0.063]
[1745354584857,27.06810874,144.26,144.23,0.063]
[1745354585378,20.1361189,144.25,144.23,0.063]
[1745354586165,27.06900852,144.24,144.23,0.063]
[1745354588867,45.71865738,144.24,144.23,1e-08]
[1745354589677,27.06900852,144.24,144.23,1e-08]
[1745354591168,6.93255797,144.25,144.23,1e-08]
[1745354591482,6.93208899,144.26,144.23,1e-08]
[1745354592676,27.06820789,144.26,144.23,1e-08]
[1745354595483,34.2561189,144.28,144.23,20.13611891]
[1745354595668,20.1361189,144.28,144.23,20.13611891]
[1745354595987,6.93163323,144.27,144.23,20.13611891]
[1745354596786,6.92952671,144.31,144.26,20.1361189]
[1745354596973,27.06564561,144.31,144.26,20.1361189]
[1745354597498,20.1361189,144.3,144.25,20.1361189]
[1745354598185,6.93048721,144.29,144.25,20.1361189]
[1745354599165,27.06660611,144.29,144.25,20.1361189]
[1745354599491,27.06660611,144.29,144.24,20.1361189]
[1745354601280,27.06660611,144.29,144.24,102.1061189]
[1745354601783,6.93048721,144.29,144.24,81.97]
[1745354602175,27.06660611,144.29,144.24,102.1061189]
[1745354605375,19.83285572,144.29,144.24,94.87236851]
[1745354605777,6.92904656,144.32,144.27,12.90236851]
[1745354605975,6.92904656,144.32,144.28,12.90236851]
[1745354606770,19.83141507,144.32,144.27,12.90236851]
[1745354606967,12.90236851,144.3,144.25,40.42636851]
[1745354607198,12.90236851,144.29,144.25,27.524]
[1745354607371,20.16071134,144.29,144.25,1.524]
[1745354607871,20.16071134,144.3,144.25,21.68471134]
[1745354608775,20.16071134,144.31,144.26,20.16071134]
[1745354608974,27.09037117,144.31,144.26,20.16071134]
[1745354609296,20.16071134,144.29,144.25,1.524]
[1745354610698,20.16071134,144.28,144.25,1.524]
[1745354612801,20.16071134,144.27,144.23,1e-08]
[1745354613691,27.09259611,144.27,144.23,1e-08]
[1745354614396,27.09259611,144.27,144.23,20.16071135]
[1745354615185,6.93188477,144.27,144.23,20.16071135]
[1745354618207,20.16071134,144.26,144.23,1e-08]
[1745354618697,20.16071134,144.24,144.23,1e-08]
[1745354620508,27.09360096,144.24,144.23,1e-08]
[1745354620692,6.93288962,144.24,144.23,1e-08]
[1745354621201,27.09360096,144.24,144.23,1e-08]
[1745354623398,45.74324982,144.24,144.23,1e-08]
[1745354624307,27.09360096,144.24,144.23,1e-08]
[1745354626407,45.74324982,144.24,144.23,1e-08]
[1745354628614,71.74324982,144.24,144.23,1e-08]
[1745354628912,18.64964886,144.23,144.18,0.063]
[1745354629112,20.16071134,144.19,144.18,0.063]
[1745354630013,27.09600504,144.19,144.18,0.063]
[1745354635517,38.50863533,144.19,144.18,0.063]
[1745354636311,12.92369277,144.18,144.17,0.063]
[1745354637632,19.85946749,144.18,144.17,0.063]
[1745354638235,81.84855316,144.18,144.09,0.063]
[1745354638422,12.92369277,144.11,144.09,0.063]
[1745354639335,20.21141034,144.1,144.09,0.063]
[1745354639526,27.1510356,144.1,144.09,0.063]
[1745354639824,6.93936007,144.11,144.09,0.063]
[1745354640021,27.15077041,144.11,144.09,0.063]
[1745354641031,20.21141034,144.14,144.09,20.27441034]
[1745354641541,27.14925,144.14,144.09,20.27441034]
[1745354642541,27.14925,144.14,144.09,0.063]
[1745354642714,20.21141034,144.13,144.09,0.063]
[1745354643616,20.21141034,144.12,144.09,0.063]
[1745354644431,6.93819499,144.13,144.09,0.063]
[1745354644432,20.21141034,144.13,144.09,0.063]
[1745354645950,20.21141034,144.12,144.09,0.063]
[1745354646119,20.21141034,144.13,144.09,0.063]
[1745354646447,27.14880334,144.15,144.1,20.21141034]
[1745354646611,6.93651833,144.17,144.11,21.73061034]
[1745354646817,14.12,144.2,144.11,21.73061034]
[1745354646818,6.9352937,144.19,144.15,20.21141034]
[1745354647129,27.14670404,144.19,144.14,46.21141034]
[1745354648142,20.21141034,144.18,144.14,46.21141034]
[1745354650036,20.21141034,144.19,144.14,46.21141034]
[1745354650624,27.14682849,144.19,144.14,20.21141034]
[1745354650839,27.14682849,144.19,144.14,46.21141034]
[1745354651125,20.21141034,144.19,144.14,46.21141034]
[1745354651642,20.21141034,144.18,144.14,26.0]
[1745354651831,20.21141034,144.17,144.13,20.21141034]
[1745354652146,20.21141034,144.18,144.13,20.21141034]
[1745354653050,27.14718889,144.18,144.13,20.21141034]
[1745354658248,20.21141034,144.17,144.13,20.21141034]
[1745354659459,12.92255957,144.17,144.12,38.92255957]
[1745354659758,12.92255957,144.17,144.12,120.89255957]
[1745354661553,19.85896237,144.17,144.12,120.89255957]
[1745354662534,6.9364028,144.17,144.13,12.92255957]
[1745354662746,19.85896237,144.17,144.13,12.92255957]
[1745354663255,6.9360494,144.18,144.14,12.92255957]
[1745354663434,19.85860897,144.18,144.13,12.92255957]
[1745354665567,6.93539955,144.19,144.14,12.92255957]
[1745354665741,19.85795912,144.19,144.14,12.92255957]
[1745354666960,6.93539955,144.19,144.15,12.92255957]
[1745354668988,19.85795912,144.19,144.14,12.92255957]
[1745354669684,19.85795912,144.19,144.12,149.64]
[1745354669860,12.92255957,144.17,144.12,162.56255957]
[1745354670388,12.92255957,144.18,144.13,12.92255957]
[1745354670763,12.92255957,144.17,144.12,120.89255957]
[1745354670967,12.92255957,144.16,144.12,107.97]
[1745354671977,6.93706035,144.16,144.12,120.89255957]
[1745354672570,6.93639491,144.17,144.13,12.92255957]
[1745354676590,19.85895448,144.17,144.12,120.89255957]
[1745354678686,19.85895448,144.17,144.12,107.97]
[1745354678990,12.92255957,144.16,144.12,81.97]
[1745354679994,19.85895448,144.17,144.12,94.89255957]
[1745354680698,18.64964886,144.2,144.12,94.89255957]
[1745354680887,18.64964886,144.2,144.13,12.92255957]
[1745354681086,24.27016156,144.21,144.13,12.92255957]
[1745354681278,12.92255957,144.18,144.13,12.92255957]
[1745354681875,12.92255957,144.19,144.14,12.92255957]
[1745354682489,24.27016156,144.21,144.14,12.92255957]
[1745354682793,12.92255957,144.2,144.15,12.92255957]
[1745354683177,6.93433187,144.21,144.18,12.92255957]
[1745354683377,6.93433187,144.21,144.17,12.92255957]
[1745354683693,19.85689144,144.21,144.16,40.43985957]
[1745354684006,12.92255957,144.2,144.16,27.5173]
[1745354685794,19.85689144,144.21,144.16,40.43985957]
[1745354687770,19.85689144,144.21,144.17,12.92255957]
[1745354687976,19.85658894,144.22,144.17,12.92255957]
[1745354689411,6.93402937,144.22,144.18,12.92255957]
[1745354689699,0.03,144.23,144.19,12.92255957]
[1745354690072,0.03,144.23,144.2,12.92255957]
[1745354690581,0.03,144.23,144.19,12.92255957]
[1745354692109,12.92255957,144.21,144.18,81.97]
[1745354693218,19.85676821,144.22,144.18,81.97]
[1745354693394,12.92255957,144.22,144.18,81.97]
[1745354694409,19.85661239,144.22,144.18,81.97]
[1745354695305,12.92255957,144.22,144.18,81.97]
[1745354695627,0.03,144.23,144.19,12.92255957]
[1745354695793,19.88598279,144.23,144.18,94.89255957]
[1745354697995,12.92255957,144.22,144.18,81.97]
[1745354698611,6.96342322,144.23,144.18,81.97]
[1745354698612,12.92255957,144.21,144.18,81.97]
[1745354700220,19.85695563,144.21,144.18,81.97]
[1745354700905,19.85695563,144.21,144.16,122.40985957]
[1745354702011,12.92255957,144.2,144.16,109.4873]
[1745354702201,19.85754888,144.2,144.16,109.4873]
[1745354702401,19.85754888,144.2,144.16,83.4873]
[1745354702591,19.85754888,144.2,144.16,81.97]
[1745354702592,12.92255957,144.19,144.16,81.97]
[1745354703122,12.92255957,144.2,144.16,81.97]
[1745354703317,12.92255957,144.2,144.16,94.89255957]
[1745354703617,19.85650696,144.22,144.17,12.92255957]
[1745354706323,19.85650696,144.22,144.17,38.92255957]
[1745354706825,6.96359794,144.23,144.19,12.92255957]
[1745354708122,0.03,144.23,144.21,12.92255957]
[1745354709027,0.03,144.23,144.2,107.97]
[1745354709238,12.95255957,144.23,144.2,81.97]
[1745354709413,12.92255957,144.22,144.2,81.97]
[1745354709611,12.92255957,144.21,144.2,81.97]
[1745354710023,12.92255957,144.21,144.16,38.92255957]
[1745354710213,19.8572391,144.21,144.16,38.92255957]
[1745354710821,6.93467953,144.21,144.16,38.92255957]
[1745354711212,6.93467953,144.21,144.17,12.92255957]
[1745354712025,6.93467953,144.21,144.17,41.58]
[1745354712329,12.92255957,144.19,144.16,26.0]
[1745354712502,12.92255957,144.19,144.14,1.551]
[1745354712706,12.92255957,144.18,144.14,27.551]
[1745354713104,12.92255957,144.18,144.14,40.47355957]
[1745354714350,12.92255957,144.18,144.14,27.551]
[1745354714636,12.92255957,144.18,144.14,40.47355957]
[1745354715434,12.92255957,144.19,144.14,40.47355957]
[1745354716531,19.85737233,144.2,144.15,12.92255957]
[1745354716742,6.93481276,144.2,144.15,12.92255957]
[1745354717033,19.85737233,144.2,144.15,12.92255957]
[1745354717836,6.93489402,144.2,144.14,40.47355957]
[1745354718014,19.85745359,144.2,144.15,12.92255957]
[1745354718449,19.85745359,144.2,144.14,27.551]
[1745354718618,12.92255957,144.19,144.14,27.551]
[1745354718914,12.92255957,144.19,144.14,40.47355957]
[1745354719925,12.92255957,144.2,144.15,12.92255957]
[1745354720327,12.92255957,144.22,144.17,12.92255957]
[1745354720519,0.03,144.23,144.19,12.92255957]
[1745354720717,12.95255957,144.23,144.18,38.92255957]
[1745354721313,0.03,144.23,144.19,12.92255957]
[1745354721515,0.03,144.23,144.21,12.92255957]
[1745354721836,0.03,144.23,144.21,38.92255957]
[1745354722134,0.03,144.23,144.2,14.50185957]
[1745354722339,0.03,144.23,144.2,40.50185957]
[1745354722733,0.03,144.23,144.2,27.5793]
[1745354723236,0.03,144.23,144.2,26.0]
[1745354723936,0.03,144.23,144.19,38.92255957]
[1745354725646,12.95255957,144.23,144.19,38.92255957]
[1745354726349,0.03,144.23,144.19,38.92255957]
[1745354728151,0.03,144.23,144.2,12.92255957]
[1745354737527,0.03,144.23,144.21,12.92255957]
[1745354738056,0.03,144.23,144.22,40.47215957]
[1745354739032,0.03,144.23,144.22,27.5496]
[1745354739342,0.03,144.23,144.22,40.47215957]
[1745354740659,0.03,144.23,144.22,26.0]
[1745354740836,0.03,144.23,144.21,12.92255957]
[1745354741045,0.03,144.23,144.21,38.92255957]
[1745354742861,0.03,144.23,144.21,12.92255957]
[1745354743371,0.03,144.23,144.22,12.92255957]
[1745354746465,0.03,144.23,144.22,54.50255957]
[1745354746649,0.03,144.23,144.22,73.15220843]
[1745354746849,0.03,144.24,144.22,99.15220843]
[1745354747054,0.03,144.24,144.23,12.92255957]
[1745354747246,0.03,144.24,144.23,31.57220843]
[1745354747844,0.03,144.24,144.23,74.69770843]
[1745354749067,0.03,144.26,144.25,67.58]
[1745354749363,0.03,144.26,144.25,80.50255957]
[1745354750657,0.03,144.29,144.28,26.0]
[1745354750840,0.03,144.29,144.28,44.39146051]
[1745354752765,0.03,144.29,144.28,38.92255957]
[1745354753969,0.03,144.29,144.28,44.36951724]
[1745354755375,0.03,144.29,144.28,106.1446661]
[1745354755568,0.03,144.32,144.31,60.22964886]
[1745354755875,0.03,144.32,144.31,87.23220843]
[1745354756352,0.03,144.39,144.38,12.92255957]
[1745354759782,0.03,144.39,144.37,12.92255957]
[1745354759983,0.03,144.39,144.36,12.92255957]
[1745354760652,0.03,144.39,144.35,38.92255957]
[1745354760853,12.95255957,144.39,144.35,26.0]
[1745354761252,12.92255957,144.38,144.35,26.0]
[1745354761464,12.92255957,144.38,144.34,26.0]
[1745354761666,6.92664681,144.37,144.34,26.0]
[1745354763363,6.92664681,144.37,144.3,1.6181]
[1745354763364,12.92255957,144.36,144.3,1.6181]
[1745354763565,12.92255957,144.36,144.29,41.58]
[1745354763763,12.92255957,144.36,144.31,12.92255957]
[1745354764280,6.92664681,144.37,144.32,38.92255957]
[1745354764485,19.84920638,144.37,144.32,38.92255957]
[1745354765661,12.92255957,144.36,144.32,38.92255957]
[1745354765971,6.92760651,144.35,144.32,38.92255957]
[1745354766465,6.92760651,144.35,144.32,26.0]
[1745354767565,6.92726913,144.36,144.33,12.92255957]
[1745354767873,6.92726913,144.36,144.34,12.92255957]
[1745354768066,6.92616705,144.38,144.35,12.92255957]
[1745354768266,0.03,144.39,144.37,12.92255957]
[1745354768465,0.03,144.39,144.38,12.92255957]
[1745354769474,0.03,144.39,144.38,20.11946957]
[1745354769671,0.03,144.39,144.37,47.73756957]
[1745354769877,0.03,144.39,144.37,26.0]
[1745354770183,27.07516279,144.39,144.35,46.11946957]
[1745354770766,27.07516279,144.39,144.35,26.0]
[1745354772084,0.03,144.39,144.36,20.11946957]
[1745354772275,0.03,144.39,144.37,20.11946957]
[1745354772480,0.03,144.39,144.38,20.11946957]
[1745354774389,0.03,144.39,144.38,102.11946957]
[1745354775267,0.03,144.39,144.38,128.11946957]
[1745354775994,0.03,144.45,144.44,20.11946957]
[1745354776288,14.14467739,144.52,144.44,20.11946957]
[1745354776289,1.126229,144.52,144.47,26.0]
[1745354776500,8.0457018,144.52,144.47,46.11946957]
[1745354776667,28.16517137,144.52,144.47,46.11946957]
[1745354777177,20.11946957,144.51,144.47,26.0]
[1745354777893,20.11946957,144.49,144.44,81.97]
[1745354778077,20.11946957,144.48,144.44,26.0]
[1745354778391,27.0411594,144.48,144.44,26.0]
[1745354778579,6.92168983,144.48,144.44,46.11946957]
[1745354779472,20.11946957,144.48,144.44,26.0]
[1745354779898,20.11946957,144.47,144.42,46.11946957]
[1745354780073,20.11946957,144.46,144.41,20.11946957]
[1745354780394,20.11946957,144.46,144.41,46.11946957]
[1745354780698,20.11946957,144.44,144.41,26.0]
[1745354780884,20.11946957,144.44,144.39,20.11946957]
[1745354781391,20.11946957,144.44,144.39,46.11946957]
[1745354781574,6.9237693,144.43,144.39,46.11946957]
[1745354787287,27.04323887,144.43,144.39,46.11946957]
[1745354788600,6.9237693,144.43,144.39,46.11946957]
[1745354790697,20.11946957,144.45,144.4,20.11946957]
[1745354791808,27.04275951,144.44,144.39,46.11946957]
[1745354793998,6.92328994,144.44,144.4,20.11946957]
[1745354796103,27.04275951,144.44,144.4,20.11946957]
[1745354796478,20.11946957,144.42,144.39,26.0]
[1745354796879,20.11946957,144.43,144.39,26.0]
[1745354797384,20.11946957,144.43,144.39,46.11946957]
[1745354797801,6.92378685,144.43,144.41,20.11946957]
[1745354797997,6.92378685,144.43,144.4,20.11946957]
[1745354798304,6.92378685,144.43,144.39,46.11946957]
[1745354800807,27.0429823,144.44,144.39,46.11946957]
[1745354801307,6.92351273,144.44,144.4,20.11946957]
[1745354802113,27.0429823,144.44,144.39,46.11946957]
[1745354803520,6.92351273,144.44,144.41,20.11946957]
[1745354803724,6.92185228,144.47,144.42,20.11946957]
[1745354804024,20.11946957,144.46,144.41,20.11946957]
[1745354804913,6.92281066,144.45,144.41,20.11946957]
[1745354805092,27.04228023,144.45,144.4,20.11946957]
[1745354805410,20.11946957,144.44,144.39,128.08946957]
[1745354807114,27.04294916,144.44,144.39,128.08946957]
[1745354807416,19.79838152,144.44,144.39,120.84490193]
[1745354807811,6.92347959,144.44,144.4,12.87490193]
[1745354809104,6.92281209,144.45,144.41,12.87490193]
[1745354811028,12.87490193,144.46,144.41,12.87490193]
[1745354812194,6.92185228,144.47,144.42,12.87490193]
[1745354812793,19.79675421,144.47,144.41,12.87490193]
[1745354814021,19.79765001,144.46,144.41,12.87490193]
[1745354815602,12.87490193,144.45,144.4,14.45620193]
[1745354816000,12.87490193,144.45,144.41,12.87490193]
[1745354817320,19.79783078,144.45,144.41,12.87490193]
[1745354818330,19.79783078,144.45,144.4,14.45620193]
[1745354819315,6.92292885,144.45,144.4,14.45620193]
[1745354819535,19.79783078,144.45,144.4,14.45620193]
[1745354821039,12.87490193,144.46,144.41,12.87490193]
[1745354821746,6.92281066,144.45,144.41,12.87490193]
[1745354822314,6.92281066,144.45,144.4,14.45620193]
[1745354822516,19.79771259,144.45,144.4,14.45620193]
[1745354823036,6.92281066,144.45,144.4,14.45620193]
[1745354823747,6.92281066,144.45,144.41,12.87490193]
[1745354825938,19.79675421,144.47,144.42,12.87490193]
[1745354826114,19.79675421,144.47,144.41,12.87490193]
[1745354826717,12.87490193,144.46,144.41,12.87490193]
[1745354827112,6.92185228,144.47,144.41,12.87490193]
[1745354827319,12.87490193,144.46,144.41,12.87490193]
[1745354829550,19.79675421,144.47,144.41,12.87490193]
[1745354831450,19.79675421,144.47,144.42,12.87490193]
[1745354834045,6.92185228,144.47,144.42,12.87490193]
[1745354834235,19.79675421,144.47,144.42,12.87490193]
[1745354837654,19.79675421,144.47,144.43,41.58]
[1745354837855,19.79675421,144.47,144.42,12.87490193]
[1745354839031,19.79675421,144.47,144.41,12.87490193]
[1745354840162,6.92185228,144.47,144.42,12.87490193]
[1745354840334,19.79675421,144.47,144.42,12.87490193]
[1745354843044,19.79678274,144.47,144.42,12.87490193]
[1745354845067,6.92157493,144.48,144.43,12.87490193]
[1745354845574,19.79647686,144.48,144.43,12.87490193]
[1745354845978,12.87490193,144.46,144.4,125.1313]
[1745354846167,12.87490193,144.47,144.41,12.87490193]